Department family,Entity,Date,Expense type,Expense area,Supplier,Transaction number,Amount
Department of Health,Leicestershire Partnership NHS Trust,01/07/21,External Consultancy Fees,Covid Vaccination Workforce Bureau,SEYMOUR JOHN PUB SERV LTD,P1800,72271.20
Department of Health,Leicestershire Partnership NHS Trust,01/07/21,Payroll Deductions -Salary Sacrifice Cars Scheme,Balance Sheet Collection,TUSKER,49590,32182.84
Department of Health,Leicestershire Partnership NHS Trust,01/07/21,Rent,NSPCC Training Cente,NSPCC,119196,28752.40
Department of Health,Leicestershire Partnership NHS Trust,02/07/21,Unitary Payment,"The Agnes Unit (AKA Assessment and Treatment Centre) (P85, LPT)",ARDEN PARTNERSHIP (LEICESTER),SI0074,117345.20
Department of Health,Leicestershire Partnership NHS Trust,02/07/21,Med Trainees - FY1,Medical Trainees,UHL NHS TRUST (RWE),L0251740,29421.14
Department of Health,Leicestershire Partnership NHS Trust,02/07/21,External Data Processing / Storage,Records & information Governance,H COATES LTD/TA C&V DATA,4005661,31980.46
Department of Health,Leicestershire Partnership NHS Trust,05/07/21,Crs_NHS_LT1y -Resus Inventory Supplied.,Balance Sheet Collection,SUPPLY CHAIN CO LTD,1122058387,28233.92
Department of Health,Leicestershire Partnership NHS Trust,05/07/21,Nurse - Band 6 -Agency,CAMHS Waiting List Monies,HCL SOCIAL CARE,HWSI0000669,31598.48
Department of Health,Leicestershire Partnership NHS Trust,05/07/21,Nurse - Band 6 -Agency,CAMHS HUB / CAP,HCL SOCIAL CARE,HWSI0000518,12832.39
Department of Health,Leicestershire Partnership NHS Trust,05/07/21,Nurse - Band 6 -Agency,CAMHS Waiting List Monies,HCL SOCIAL CARE,HWSI0000518,13564.81
Department of Health,Leicestershire Partnership NHS Trust,05/07/21,Nurse - Band 6 -Agency,Crisis Response and Home Treatment,HCL SOCIAL CARE,HWSI0000518,2260.95
Department of Health,Leicestershire Partnership NHS Trust,05/07/21,Nurse - Band 6 -Agency,CAMHS Waiting List Monies,HCL SOCIAL CARE,HWSI0000534,30333.67
Department of Health,Leicestershire Partnership NHS Trust,05/07/21,Nurse - Band 6 -Agency,CAMHS Waiting List Monies,HCL SOCIAL CARE,HWSI0000646,30996.63
Department of Health,Leicestershire Partnership NHS Trust,05/07/21,Nurse - Band 6 -Agency,AMH - Central Access Point,HCL NURSING,HNSI0000728,7675.74
Department of Health,Leicestershire Partnership NHS Trust,05/07/21,NURSE - BAND 2 - AGENCY,Acacia (Willows),HCL NURSING,HNSI0000728,349.46
Department of Health,Leicestershire Partnership NHS Trust,05/07/21,Nurse - Band 6 -Agency,Adult City East CMHT - Merlyn Vaz,HCL NURSING,HNSI0000728,3126.78
Department of Health,Leicestershire Partnership NHS Trust,05/07/21,Nurse - Band 6 -Agency,Adult County Charnwood CMHT - Loughborough Base,HCL NURSING,HNSI0000728,1377.01
Department of Health,Leicestershire Partnership NHS Trust,05/07/21,Nurse - Band 6 -Agency,Adult County West Leicestershire CMHT,HCL NURSING,HNSI0000728,1069.97
Department of Health,Leicestershire Partnership NHS Trust,05/07/21,NURSE - BAND 2 - AGENCY,Agnes Unit Management,HCL NURSING,HNSI0000728,18942.70
Department of Health,Leicestershire Partnership NHS Trust,05/07/21,NURSE - BAND 5 - AGENCY,Agnes Unit Management,HCL NURSING,HNSI0000728,17478.44
Department of Health,Leicestershire Partnership NHS Trust,05/07/21,NURSE - BAND 2 - AGENCY,Ashby Ward (Bradgate Unit),HCL NURSING,HNSI0000728,676.20
Department of Health,Leicestershire Partnership NHS Trust,05/07/21,NURSE - BAND 5 - AGENCY,Ashby Ward (Bradgate Unit),HCL NURSING,HNSI0000728,329.84
Department of Health,Leicestershire Partnership NHS Trust,05/07/21,NURSE - BAND 2 - AGENCY,Aston Ward (Bradgate Unit),HCL NURSING,HNSI0000728,562.72
Department of Health,Leicestershire Partnership NHS Trust,05/07/21,NURSE - BAND 5 - AGENCY,Aston Ward (Bradgate Unit),HCL NURSING,HNSI0000728,659.67
Department of Health,Leicestershire Partnership NHS Trust,05/07/21,NURSE - BAND 2 - AGENCY,Beaumont Ward - Bradgate Unit,HCL NURSING,HNSI0000728,2529.76
Department of Health,Leicestershire Partnership NHS Trust,05/07/21,NURSE - BAND 5 - AGENCY,Beaumont Ward - Bradgate Unit,HCL NURSING,HNSI0000728,1422.98
Department of Health,Leicestershire Partnership NHS Trust,05/07/21,NURSE - BAND 2 - AGENCY,Belvoir Psychiatric Intensive Care Unit,HCL NURSING,HNSI0000728,2669.51
Department of Health,Leicestershire Partnership NHS Trust,05/07/21,NURSE - BAND 5 - AGENCY,Belvoir Psychiatric Intensive Care Unit,HCL NURSING,HNSI0000728,1644.37
Department of Health,Leicestershire Partnership NHS Trust,05/07/21,Nurse - Band 6 -Agency,City West CMHT MHSOP,HCL NURSING,HNSI0000728,1069.97
Department of Health,Leicestershire Partnership NHS Trust,05/07/21,NURSE - BAND 2 - AGENCY,Coleman Ward,HCL NURSING,HNSI0000728,17267.36
Department of Health,Leicestershire Partnership NHS Trust,05/07/21,NURSE - BAND 5 - AGENCY,Coleman Ward,HCL NURSING,HNSI0000728,3719.34
Department of Health,Leicestershire Partnership NHS Trust,05/07/21,NURSE - BAND 2 - AGENCY,Griffin Ward (HPC),HCL NURSING,HNSI0000728,558.64
Department of Health,Leicestershire Partnership NHS Trust,05/07/21,NURSE - BAND 2 - AGENCY,Heather Ward,HCL NURSING,HNSI0000728,1365.17
Department of Health,Leicestershire Partnership NHS Trust,05/07/21,NURSE - BAND 5 - AGENCY,Heather Ward,HCL NURSING,HNSI0000728,329.84
Department of Health,Leicestershire Partnership NHS Trust,05/07/21,NURSE - BAND 2 - AGENCY,Kirby Ward,HCL NURSING,HNSI0000728,1082.72
Department of Health,Leicestershire Partnership NHS Trust,05/07/21,NURSE - BAND 2 - AGENCY,Maple Ward,HCL NURSING,HNSI0000728,174.73
Department of Health,Leicestershire Partnership NHS Trust,05/07/21,Nurse - Band 6 -Agency,Mental Health Triage Team,HCL NURSING,HNSI0000728,1522.92
Department of Health,Leicestershire Partnership NHS Trust,05/07/21,NURSE - BAND 2 - AGENCY,Mill Lodge,HCL NURSING,HNSI0000728,2160.89
Department of Health,Leicestershire Partnership NHS Trust,05/07/21,NURSE - BAND 5 - AGENCY,Mill Lodge,HCL NURSING,HNSI0000728,287.94
Department of Health,Leicestershire Partnership NHS Trust,05/07/21,NURSE - BAND 2 - AGENCY,Phoenix Ward (HPC),HCL NURSING,HNSI0000728,1209.79
Department of Health,Leicestershire Partnership NHS Trust,05/07/21,NURSE - BAND 5 - AGENCY,Phoenix Ward (HPC),HCL NURSING,HNSI0000728,779.38
Department of Health,Leicestershire Partnership NHS Trust,05/07/21,NURSE - BAND 2 - AGENCY,Place Of Safety Assessment Unit,HCL NURSING,HNSI0000728,1151.58
Department of Health,Leicestershire Partnership NHS Trust,05/07/21,NURSE - BAND 5 - AGENCY,Place Of Safety Assessment Unit,HCL NURSING,HNSI0000728,746.41
Department of Health,Leicestershire Partnership NHS Trust,05/07/21,NURSE - BAND 2 - AGENCY,Stewart House,HCL NURSING,HNSI0000728,749.75
Department of Health,Leicestershire Partnership NHS Trust,05/07/21,NURSE - BAND 5 - AGENCY,Stewart House,HCL NURSING,HNSI0000728,1192.74
Department of Health,Leicestershire Partnership NHS Trust,05/07/21,NURSE - BAND 2 - AGENCY,Thornton Ward - Bradgate Unit,HCL NURSING,HNSI0000728,174.73
Department of Health,Leicestershire Partnership NHS Trust,05/07/21,NURSE - BAND 2 - AGENCY,Watermead Ward (Bradgate Unit),HCL NURSING,HNSI0000728,406.45
Department of Health,Leicestershire Partnership NHS Trust,05/07/21,NURSE - BAND 2 - AGENCY,Welford Ward,HCL NURSING,HNSI0000728,316.33
Department of Health,Leicestershire Partnership NHS Trust,05/07/21,NURSE - BAND 5 - AGENCY,Welford Ward,HCL NURSING,HNSI0000728,1419.45
Department of Health,Leicestershire Partnership NHS Trust,05/07/21,Nurse - Band 6 -Agency,AMH - Central Access Point,HCL NURSING,HNSI0000723,2386.18
Department of Health,Leicestershire Partnership NHS Trust,05/07/21,Nurse - Band 6 -Agency,Adult City East CMHT - Merlyn Vaz,HCL NURSING,HNSI0000723,4484.70
Department of Health,Leicestershire Partnership NHS Trust,05/07/21,Nurse - Band 6 -Agency,Adult County Charnwood CMHT - Loughborough Base,HCL NURSING,HNSI0000723,1377.01
Department of Health,Leicestershire Partnership NHS Trust,05/07/21,Nurse - Band 6 -Agency,Adult County West Leicestershire CMHT,HCL NURSING,HNSI0000723,1069.97
Department of Health,Leicestershire Partnership NHS Trust,05/07/21,NURSE - BAND 2 - AGENCY,Agnes Unit Management,HCL NURSING,HNSI0000723,13079.67
Department of Health,Leicestershire Partnership NHS Trust,05/07/21,NURSE - BAND 5 - AGENCY,Agnes Unit Management,HCL NURSING,HNSI0000723,15320.31
Department of Health,Leicestershire Partnership NHS Trust,05/07/21,NURSE - BAND 2 - AGENCY,Ashby Ward (Bradgate Unit),HCL NURSING,HNSI0000723,1156.13
Department of Health,Leicestershire Partnership NHS Trust,05/07/21,NURSE - BAND 2 - AGENCY,Aston Ward (Bradgate Unit),HCL NURSING,HNSI0000723,207.03
Department of Health,Leicestershire Partnership NHS Trust,05/07/21,NURSE - BAND 5 - AGENCY,Aston Ward (Bradgate Unit),HCL NURSING,HNSI0000723,763.31
Department of Health,Leicestershire Partnership NHS Trust,05/07/21,NURSE - BAND 2 - AGENCY,Beaumont Ward - Bradgate Unit,HCL NURSING,HNSI0000723,1740.80
Department of Health,Leicestershire Partnership NHS Trust,05/07/21,NURSE - BAND 2 - AGENCY,Belvoir Psychiatric Intensive Care Unit,HCL NURSING,HNSI0000723,898.15
Department of Health,Leicestershire Partnership NHS Trust,05/07/21,NURSE - BAND 5 - AGENCY,Belvoir Psychiatric Intensive Care Unit,HCL NURSING,HNSI0000723,1392.56
Department of Health,Leicestershire Partnership NHS Trust,05/07/21,Nurse - Band 6 -Agency,City West CMHT MHSOP,HCL NURSING,HNSI0000723,1069.97
Department of Health,Leicestershire Partnership NHS Trust,05/07/21,NURSE - BAND 2 - AGENCY,Coleman Ward,HCL NURSING,HNSI0000723,19371.78
Department of Health,Leicestershire Partnership NHS Trust,05/07/21,NURSE - BAND 5 - AGENCY,Coleman Ward,HCL NURSING,HNSI0000723,2907.30
Department of Health,Leicestershire Partnership NHS Trust,05/07/21,NURSE - BAND 2 - AGENCY,Griffin Ward (HPC),HCL NURSING,HNSI0000723,747.77
Department of Health,Leicestershire Partnership NHS Trust,05/07/21,NURSE - BAND 5 - AGENCY,Gwendolen Ward,HCL NURSING,HNSI0000723,599.85
Department of Health,Leicestershire Partnership NHS Trust,05/07/21,NURSE - BAND 2 - AGENCY,Heather Ward,HCL NURSING,HNSI0000723,1002.21
Department of Health,Leicestershire Partnership NHS Trust,05/07/21,NURSE - BAND 2 - AGENCY,Kirby Ward,HCL NURSING,HNSI0000723,1626.08
Department of Health,Leicestershire Partnership NHS Trust,05/07/21,NURSE - BAND 5 - AGENCY,Kirby Ward,HCL NURSING,HNSI0000723,935.39
Department of Health,Leicestershire Partnership NHS Trust,05/07/21,Nurse - Band 6 -Agency,Mental Health Triage Team,HCL NURSING,HNSI0000723,1522.92
Department of Health,Leicestershire Partnership NHS Trust,05/07/21,NURSE - BAND 2 - AGENCY,Mill Lodge,HCL NURSING,HNSI0000723,1183.85
Department of Health,Leicestershire Partnership NHS Trust,05/07/21,NURSE - BAND 5 - AGENCY,Mill Lodge,HCL NURSING,HNSI0000723,536.04
Department of Health,Leicestershire Partnership NHS Trust,05/07/21,NURSE - BAND 2 - AGENCY,Phoenix Ward (HPC),HCL NURSING,HNSI0000723,174.73
Department of Health,Leicestershire Partnership NHS Trust,05/07/21,NURSE - BAND 5 - AGENCY,Phoenix Ward (HPC),HCL NURSING,HNSI0000723,1103.29
Department of Health,Leicestershire Partnership NHS Trust,05/07/21,NURSE - BAND 2 - AGENCY,Place Of Safety Assessment Unit,HCL NURSING,HNSI0000723,259.53
Department of Health,Leicestershire Partnership NHS Trust,05/07/21,NURSE - BAND 5 - AGENCY,Place Of Safety Assessment Unit,HCL NURSING,HNSI0000723,356.88
Department of Health,Leicestershire Partnership NHS Trust,05/07/21,NURSE - BAND 2 - AGENCY,Stewart House,HCL NURSING,HNSI0000723,524.17
Department of Health,Leicestershire Partnership NHS Trust,05/07/21,NURSE - BAND 5 - AGENCY,Stewart House,HCL NURSING,HNSI0000723,477.15
Department of Health,Leicestershire Partnership NHS Trust,05/07/21,NURSE - BAND 2 - AGENCY,Thornton Ward - Bradgate Unit,HCL NURSING,HNSI0000723,1258.06
Department of Health,Leicestershire Partnership NHS Trust,05/07/21,NURSE - BAND 2 - AGENCY,Urgent Care Hub,HCL NURSING,HNSI0000723,231.62
Department of Health,Leicestershire Partnership NHS Trust,05/07/21,NURSE - BAND 2 - AGENCY,Watermead Ward (Bradgate Unit),HCL NURSING,HNSI0000723,401.53
Department of Health,Leicestershire Partnership NHS Trust,05/07/21,NURSE - BAND 2 - AGENCY,Welford Ward,HCL NURSING,HNSI0000723,501.76
Department of Health,Leicestershire Partnership NHS Trust,05/07/21,NURSE - BAND 5 - AGENCY,Welford Ward,HCL NURSING,HNSI0000723,1098.51
Department of Health,Leicestershire Partnership NHS Trust,05/07/21,Nurse - Band 6 -Agency,AMH - Central Access Point,HCL NURSING,HNSI0000699,1966.17
Department of Health,Leicestershire Partnership NHS Trust,05/07/21,Nurse - Band 6 -Agency,Adult City East CMHT - Merlyn Vaz,HCL NURSING,HNSI0000699,1367.27
Department of Health,Leicestershire Partnership NHS Trust,05/07/21,Nurse - Band 6 -Agency,Adult County Charnwood CMHT - Loughborough Base,HCL NURSING,HNSI0000699,1079.17
Department of Health,Leicestershire Partnership NHS Trust,05/07/21,Nurse - Band 6 -Agency,Adult County West Leicestershire CMHT,HCL NURSING,HNSI0000699,1069.97
Department of Health,Leicestershire Partnership NHS Trust,05/07/21,NURSE - BAND 2 - AGENCY,Agnes Unit Management,HCL NURSING,HNSI0000699,22155.45
Department of Health,Leicestershire Partnership NHS Trust,05/07/21,NURSE - BAND 5 - AGENCY,Agnes Unit Management,HCL NURSING,HNSI0000699,10469.97
Department of Health,Leicestershire Partnership NHS Trust,05/07/21,NURSE - BAND 2 - AGENCY,Ashby Ward (Bradgate Unit),HCL NURSING,HNSI0000699,547.37
Department of Health,Leicestershire Partnership NHS Trust,05/07/21,NURSE - BAND 5 - AGENCY,Ashby Ward (Bradgate Unit),HCL NURSING,HNSI0000699,341.11
Department of Health,Leicestershire Partnership NHS Trust,05/07/21,NURSE - BAND 2 - AGENCY,Aston Ward (Bradgate Unit),HCL NURSING,HNSI0000699,3139.98
Department of Health,Leicestershire Partnership NHS Trust,05/07/21,NURSE - BAND 5 - AGENCY,Aston Ward (Bradgate Unit),HCL NURSING,HNSI0000699,392.91
Department of Health,Leicestershire Partnership NHS Trust,05/07/21,NURSE - BAND 2 - AGENCY,Beaumont Ward - Bradgate Unit,HCL NURSING,HNSI0000699,2168.34
Department of Health,Leicestershire Partnership NHS Trust,05/07/21,NURSE - BAND 5 - AGENCY,Beaumont Ward - Bradgate Unit,HCL NURSING,HNSI0000699,722.75
Department of Health,Leicestershire Partnership NHS Trust,05/07/21,NURSE - BAND 2 - AGENCY,Belvoir Psychiatric Intensive Care Unit,HCL NURSING,HNSI0000699,1382.60
Department of Health,Leicestershire Partnership NHS Trust,05/07/21,NURSE - BAND 5 - AGENCY,Belvoir Psychiatric Intensive Care Unit,HCL NURSING,HNSI0000699,1021.07
Department of Health,Leicestershire Partnership NHS Trust,05/07/21,Nurse - Band 6 -Agency,Crisis Resolution,HCL NURSING,HNSI0000699,2767.68
Department of Health,Leicestershire Partnership NHS Trust,05/07/21,NURSE - BAND 2 - AGENCY,Griffin Ward (HPC),HCL NURSING,HNSI0000699,1649.24
Department of Health,Leicestershire Partnership NHS Trust,05/07/21,NURSE - BAND 2 - AGENCY,Heather Ward,HCL NURSING,HNSI0000699,868.68
Department of Health,Leicestershire Partnership NHS Trust,05/07/21,NURSE - BAND 2 - AGENCY,Maple Ward,HCL NURSING,HNSI0000699,174.73
Department of Health,Leicestershire Partnership NHS Trust,05/07/21,Nurse - Band 6 -Agency,Mental Health Triage Team,HCL NURSING,HNSI0000699,1872.95
Department of Health,Leicestershire Partnership NHS Trust,05/07/21,NURSE - BAND 2 - AGENCY,Mill Lodge,HCL NURSING,HNSI0000699,2824.64
Department of Health,Leicestershire Partnership NHS Trust,05/07/21,NURSE - BAND 5 - AGENCY,Mill Lodge,HCL NURSING,HNSI0000699,1614.23
Department of Health,Leicestershire Partnership NHS Trust,05/07/21,NURSE - BAND 2 - AGENCY,Outreach,HCL NURSING,HNSI0000699,1583.83
Department of Health,Leicestershire Partnership NHS Trust,05/07/21,NURSE - BAND 2 - AGENCY,Phoenix Ward (HPC),HCL NURSING,HNSI0000699,344.58
Department of Health,Leicestershire Partnership NHS Trust,05/07/21,NURSE - BAND 5 - AGENCY,Phoenix Ward (HPC),HCL NURSING,HNSI0000699,363.64
Department of Health,Leicestershire Partnership NHS Trust,05/07/21,NURSE - BAND 5 - AGENCY,Place Of Safety Assessment Unit,HCL NURSING,HNSI0000699,1006.41
Department of Health,Leicestershire Partnership NHS Trust,05/07/21,NURSE - BAND 2 - AGENCY,Stewart House,HCL NURSING,HNSI0000699,312.93
Department of Health,Leicestershire Partnership NHS Trust,05/07/21,NURSE - BAND 5 - AGENCY,Stewart House,HCL NURSING,HNSI0000699,2035.30
Department of Health,Leicestershire Partnership NHS Trust,05/07/21,NURSE - BAND 2 - AGENCY,Thornton Ward - Bradgate Unit,HCL NURSING,HNSI0000699,174.73
Department of Health,Leicestershire Partnership NHS Trust,05/07/21,NURSE - BAND 5 - AGENCY,Thornton Ward - Bradgate Unit,HCL NURSING,HNSI0000699,370.40
Department of Health,Leicestershire Partnership NHS Trust,05/07/21,NURSE - BAND 2 - AGENCY,Watermead Ward (Bradgate Unit),HCL NURSING,HNSI0000699,174.73
Department of Health,Leicestershire Partnership NHS Trust,05/07/21,NURSE - BAND 5 - AGENCY,Watermead Ward (Bradgate Unit),HCL NURSING,HNSI0000699,346.74
Department of Health,Leicestershire Partnership NHS Trust,05/07/21,Nurse - Band 6 -Agency,AMH - Central Access Point,HCL NURSING,HNSI0000712,7379.80
Department of Health,Leicestershire Partnership NHS Trust,05/07/21,Nurse - Band 6 -Agency,Adult City East CMHT - Merlyn Vaz,HCL NURSING,HNSI0000712,2698.21
Department of Health,Leicestershire Partnership NHS Trust,05/07/21,Nurse - Band 6 -Agency,Adult County Charnwood CMHT - Loughborough Base,HCL NURSING,HNSI0000712,2102.72
Department of Health,Leicestershire Partnership NHS Trust,05/07/21,Nurse - Band 6 -Agency,Adult County West Leicestershire CMHT,HCL NURSING,HNSI0000712,1198.36
Department of Health,Leicestershire Partnership NHS Trust,05/07/21,NURSE - BAND 2 - AGENCY,Agnes Unit Management,HCL NURSING,HNSI0000712,20874.91
Department of Health,Leicestershire Partnership NHS Trust,05/07/21,NURSE - BAND 5 - AGENCY,Agnes Unit Management,HCL NURSING,HNSI0000712,14232.64
Department of Health,Leicestershire Partnership NHS Trust,05/07/21,NURSE - BAND 2 - AGENCY,Ashby Ward (Bradgate Unit),HCL NURSING,HNSI0000712,859.29
Department of Health,Leicestershire Partnership NHS Trust,05/07/21,NURSE - BAND 2 - AGENCY,Aston Ward (Bradgate Unit),HCL NURSING,HNSI0000712,3548.19
Department of Health,Leicestershire Partnership NHS Trust,05/07/21,NURSE - BAND 2 - AGENCY,Beaumont Ward - Bradgate Unit,HCL NURSING,HNSI0000712,3435.58
Department of Health,Leicestershire Partnership NHS Trust,05/07/21,NURSE - BAND 5 - AGENCY,Beaumont Ward - Bradgate Unit,HCL NURSING,HNSI0000712,732.89
Department of Health,Leicestershire Partnership NHS Trust,05/07/21,NURSE - BAND 2 - AGENCY,Belvoir Psychiatric Intensive Care Unit,HCL NURSING,HNSI0000712,1641.04
Department of Health,Leicestershire Partnership NHS Trust,05/07/21,NURSE - BAND 5 - AGENCY,Belvoir Psychiatric Intensive Care Unit,HCL NURSING,HNSI0000712,2825.68
Department of Health,Leicestershire Partnership NHS Trust,05/07/21,Nurse - Band 6 -Agency,City West CMHT MHSOP,HCL NURSING,HNSI0000712,855.97
Department of Health,Leicestershire Partnership NHS Trust,05/07/21,NURSE - BAND 2 - AGENCY,Coleman Ward,HCL NURSING,HNSI0000712,8177.84
Department of Health,Leicestershire Partnership NHS Trust,05/07/21,NURSE - BAND 5 - AGENCY,Coleman Ward,HCL NURSING,HNSI0000712,891.50
Department of Health,Leicestershire Partnership NHS Trust,05/07/21,NURSE - BAND 2 - AGENCY,Griffin Ward (HPC),HCL NURSING,HNSI0000712,734.50
Department of Health,Leicestershire Partnership NHS Trust,05/07/21,NURSE - BAND 2 - AGENCY,Gwendolen Ward,HCL NURSING,HNSI0000712,3534.45
Department of Health,Leicestershire Partnership NHS Trust,05/07/21,NURSE - BAND 5 - AGENCY,Gwendolen Ward,HCL NURSING,HNSI0000712,1555.80
Department of Health,Leicestershire Partnership NHS Trust,05/07/21,NURSE - BAND 2 - AGENCY,Heather Ward,HCL NURSING,HNSI0000712,174.73
Department of Health,Leicestershire Partnership NHS Trust,05/07/21,NURSE - BAND 2 - AGENCY,Kirby Ward,HCL NURSING,HNSI0000712,1026.25
Department of Health,Leicestershire Partnership NHS Trust,05/07/21,NURSE - BAND 5 - AGENCY,Kirby Ward,HCL NURSING,HNSI0000712,421.85
Department of Health,Leicestershire Partnership NHS Trust,05/07/21,Nurse - Band 6 -Agency,Mental Health Triage Team,HCL NURSING,HNSI0000712,1418.97
Department of Health,Leicestershire Partnership NHS Trust,05/07/21,NURSE - BAND 2 - AGENCY,Mill Lodge,HCL NURSING,HNSI0000712,3558.28
Department of Health,Leicestershire Partnership NHS Trust,05/07/21,NURSE - BAND 5 - AGENCY,Mill Lodge,HCL NURSING,HNSI0000712,529.35
Department of Health,Leicestershire Partnership NHS Trust,05/07/21,NURSE - BAND 2 - AGENCY,Phoenix Ward (HPC),HCL NURSING,HNSI0000712,2297.01
Department of Health,Leicestershire Partnership NHS Trust,05/07/21,NURSE - BAND 2 - AGENCY,Place Of Safety Assessment Unit,HCL NURSING,HNSI0000712,547.37
Department of Health,Leicestershire Partnership NHS Trust,05/07/21,NURSE - BAND 5 - AGENCY,Place Of Safety Assessment Unit,HCL NURSING,HNSI0000712,713.75
Department of Health,Leicestershire Partnership NHS Trust,05/07/21,NURSE - BAND 2 - AGENCY,Stewart House,HCL NURSING,HNSI0000712,650.19
Department of Health,Leicestershire Partnership NHS Trust,05/07/21,NURSE - BAND 5 - AGENCY,Stewart House,HCL NURSING,HNSI0000712,1500.55
Department of Health,Leicestershire Partnership NHS Trust,05/07/21,NURSE - BAND 2 - AGENCY,Thornton Ward - Bradgate Unit,HCL NURSING,HNSI0000712,174.73
Department of Health,Leicestershire Partnership NHS Trust,05/07/21,NURSE - BAND 2 - AGENCY,Watermead Ward (Bradgate Unit),HCL NURSING,HNSI0000712,277.89
Department of Health,Leicestershire Partnership NHS Trust,05/07/21,NURSE - BAND 5 - AGENCY,Watermead Ward (Bradgate Unit),HCL NURSING,HNSI0000712,669.81
Department of Health,Leicestershire Partnership NHS Trust,05/07/21,NURSE - BAND 2 - AGENCY,Welford Ward,HCL NURSING,HNSI0000712,182.76
Department of Health,Leicestershire Partnership NHS Trust,05/07/21,NURSE - BAND 5 - AGENCY,Welford Ward,HCL NURSING,HNSI0000712,1098.51
Department of Health,Leicestershire Partnership NHS Trust,05/07/21,Nurse - Band 6 -Agency,AMH - Central Access Point,HCL NURSING,HNSI0000704,4357.73
Department of Health,Leicestershire Partnership NHS Trust,05/07/21,Nurse - Band 6 -Agency,Adult County Charnwood CMHT - Loughborough Base,HCL NURSING,HNSI0000704,2889.89
Department of Health,Leicestershire Partnership NHS Trust,05/07/21,Nurse - Band 6 -Agency,Adult County West Leicestershire CMHT,HCL NURSING,HNSI0000704,1069.97
Department of Health,Leicestershire Partnership NHS Trust,05/07/21,NURSE - BAND 2 - AGENCY,Agnes Unit Management,HCL NURSING,HNSI0000704,23017.47
Department of Health,Leicestershire Partnership NHS Trust,05/07/21,NURSE - BAND 5 - AGENCY,Agnes Unit Management,HCL NURSING,HNSI0000704,12342.80
Department of Health,Leicestershire Partnership NHS Trust,05/07/21,NURSE - BAND 2 - AGENCY,Ashby Ward (Bradgate Unit),HCL NURSING,HNSI0000704,835.02
Department of Health,Leicestershire Partnership NHS Trust,05/07/21,NURSE - BAND 5 - AGENCY,Ashby Ward (Bradgate Unit),HCL NURSING,HNSI0000704,410.94
Department of Health,Leicestershire Partnership NHS Trust,05/07/21,NURSE - BAND 2 - AGENCY,Aston Ward (Bradgate Unit),HCL NURSING,HNSI0000704,1852.18
Department of Health,Leicestershire Partnership NHS Trust,05/07/21,NURSE - BAND 5 - AGENCY,Aston Ward (Bradgate Unit),HCL NURSING,HNSI0000704,797.11
Department of Health,Leicestershire Partnership NHS Trust,05/07/21,NURSE - BAND 2 - AGENCY,Beaumont Ward - Bradgate Unit,HCL NURSING,HNSI0000704,2582.36
Department of Health,Leicestershire Partnership NHS Trust,05/07/21,NURSE - BAND 5 - AGENCY,Beaumont Ward - Bradgate Unit,HCL NURSING,HNSI0000704,669.81
Department of Health,Leicestershire Partnership NHS Trust,05/07/21,NURSE - BAND 2 - AGENCY,Belvoir Psychiatric Intensive Care Unit,HCL NURSING,HNSI0000704,1579.82
Department of Health,Leicestershire Partnership NHS Trust,05/07/21,NURSE - BAND 5 - AGENCY,Belvoir Psychiatric Intensive Care Unit,HCL NURSING,HNSI0000704,1319.35
Department of Health,Leicestershire Partnership NHS Trust,05/07/21,NURSE - BAND 2 - AGENCY,Coleman Ward,HCL NURSING,HNSI0000704,1444.78
Department of Health,Leicestershire Partnership NHS Trust,05/07/21,Nurse - Band 6 -Agency,Crisis Resolution,HCL NURSING,HNSI0000704,684.67
Department of Health,Leicestershire Partnership NHS Trust,05/07/21,NURSE - BAND 2 - AGENCY,Griffin Ward (HPC),HCL NURSING,HNSI0000704,1505.60
Department of Health,Leicestershire Partnership NHS Trust,05/07/21,NURSE - BAND 5 - AGENCY,Griffin Ward (HPC),HCL NURSING,HNSI0000704,329.84
Department of Health,Leicestershire Partnership NHS Trust,05/07/21,NURSE - BAND 2 - AGENCY,Gwendolen Ward,HCL NURSING,HNSI0000704,1936.70
Department of Health,Leicestershire Partnership NHS Trust,05/07/21,NURSE - BAND 2 - AGENCY,Heather Ward,HCL NURSING,HNSI0000704,1038.30
Department of Health,Leicestershire Partnership NHS Trust,05/07/21,NURSE - BAND 5 - AGENCY,Heather Ward,HCL NURSING,HNSI0000704,1329.49
Department of Health,Leicestershire Partnership NHS Trust,05/07/21,NURSE - BAND 2 - AGENCY,Kirby Ward,HCL NURSING,HNSI0000704,769.50
Department of Health,Leicestershire Partnership NHS Trust,05/07/21,Nurse - Band 6 -Agency,Mental Health Triage Team,HCL NURSING,HNSI0000704,1589.21
Department of Health,Leicestershire Partnership NHS Trust,05/07/21,NURSE - BAND 2 - AGENCY,Mill Lodge,HCL NURSING,HNSI0000704,3890.44
Department of Health,Leicestershire Partnership NHS Trust,05/07/21,NURSE - BAND 5 - AGENCY,Mill Lodge,HCL NURSING,HNSI0000704,2917.27
Department of Health,Leicestershire Partnership NHS Trust,05/07/21,NURSE - BAND 2 - AGENCY,Outreach,HCL NURSING,HNSI0000704,723.96
Department of Health,Leicestershire Partnership NHS Trust,05/07/21,NURSE - BAND 2 - AGENCY,Phoenix Ward (HPC),HCL NURSING,HNSI0000704,1768.60
Department of Health,Leicestershire Partnership NHS Trust,05/07/21,NURSE - BAND 5 - AGENCY,Phoenix Ward (HPC),HCL NURSING,HNSI0000704,352.39
Department of Health,Leicestershire Partnership NHS Trust,05/07/21,NURSE - BAND 2 - AGENCY,Place Of Safety Assessment Unit,HCL NURSING,HNSI0000704,555.77
Department of Health,Leicestershire Partnership NHS Trust,05/07/21,NURSE - BAND 5 - AGENCY,Place Of Safety Assessment Unit,HCL NURSING,HNSI0000704,1006.41
Department of Health,Leicestershire Partnership NHS Trust,05/07/21,NURSE - BAND 2 - AGENCY,Stewart House,HCL NURSING,HNSI0000704,580.91
Department of Health,Leicestershire Partnership NHS Trust,05/07/21,NURSE - BAND 5 - AGENCY,Stewart House,HCL NURSING,HNSI0000704,1351.95
Department of Health,Leicestershire Partnership NHS Trust,05/07/21,NURSE - BAND 2 - AGENCY,Watermead Ward (Bradgate Unit),HCL NURSING,HNSI0000704,1166.91
Department of Health,Leicestershire Partnership NHS Trust,05/07/21,NURSE - BAND 5 - AGENCY,Watermead Ward (Bradgate Unit),HCL NURSING,HNSI0000704,329.84
Department of Health,Leicestershire Partnership NHS Trust,06/07/21,Computer Software,Learning & Develpoment,THINK ASSOCIATES LTD,X-2574,61764.00
Department of Health,Leicestershire Partnership NHS Trust,07/07/21,PropCo Estates Management,St. Luke's Hospital (PROPCO),NHS PROPERTY SERVICES LTD,00000001/H457605,161699.55
Department of Health,Leicestershire Partnership NHS Trust,07/07/21,PropCo Estates Management,New Parks Health Centre (PROPCO),NHS PROPERTY SERVICES LTD,00000001/H457609,40125.10
Department of Health,Leicestershire Partnership NHS Trust,07/07/21,PropCo Estates Management,St. Luke's Hospital (PROPCO),NHS PROPERTY SERVICES LTD,00000001/H457600,36269.23
Department of Health,Leicestershire Partnership NHS Trust,07/07/21,PropCo Estates Management,Melton Mowbray Hospital (previously St. Mary's) (PROPCO),NHS PROPERTY SERVICES LTD,00000001/H457602,101018.55
Department of Health,Leicestershire Partnership NHS Trust,07/07/21,PropCo Estates Management,"Braunstone Health and Social Care Centre (part) (P16, LPT)",NHS PROPERTY SERVICES LTD,00000001/H457591,59179.89
Department of Health,Leicestershire Partnership NHS Trust,07/07/21,PropCo Estates Management,Charnwood Mill (PROPCO),NHS PROPERTY SERVICES LTD,00000001/H455517,38020.45
Department of Health,Leicestershire Partnership NHS Trust,07/07/21,PropCo Estates Management,"Braunstone Health and Social Care Centre (part) (P16, LPT)",NHS PROPERTY SERVICES LTD,00000001/H455519,71946.24
Department of Health,Leicestershire Partnership NHS Trust,07/07/21,PropCo Estates Management,Melton Mowbray Hospital (previously St. Mary's) (PROPCO),NHS PROPERTY SERVICES LTD,00000001/H455516,48626.05
Department of Health,Leicestershire Partnership NHS Trust,07/07/21,PropCo Estates Management,Melton Mowbray Hospital (previously St. Mary's) (PROPCO),NHS PROPERTY SERVICES LTD,00000001/H455512,26620.78
Department of Health,Leicestershire Partnership NHS Trust,07/07/21,PropCo Estates Management,St. Luke's Hospital (PROPCO),NHS PROPERTY SERVICES LTD,00000001/H455510,43054.90
Department of Health,Leicestershire Partnership NHS Trust,07/07/21,PropCo Estates Management,St. Luke's Hospital (PROPCO),NHS PROPERTY SERVICES LTD,00000001/H455507,54482.34
Department of Health,Leicestershire Partnership NHS Trust,07/07/21,Healthcare Services / Recharges from Non-NHS Bodies,Adult Eating Disorder Collaborative,ELLERN MEDE MOORGATE,200,36000.00
Department of Health,Leicestershire Partnership NHS Trust,07/07/21,Telephone equipment,New Parks Health Centre (PROPCO),VIRGIN MEDIA BUSINESS,60046113,25559.57
Department of Health,Leicestershire Partnership NHS Trust,07/07/21,Telephone equipment,SPA,VIRGIN MEDIA BUSINESS,60046113,9939.84
Department of Health,Leicestershire Partnership NHS Trust,07/07/21,Network Costs - WAN Maint,HIS Infrastructure,VIRGIN MEDIA BUSINESS,262421-183,34134.14
Department of Health,Leicestershire Partnership NHS Trust,07/07/21,Network Costs - WAN Maint,HIS Infrastructure,VIRGIN MEDIA BUSINESS,262421-180,43983.08
Department of Health,Leicestershire Partnership NHS Trust,08/07/21,HR / Payroll Services,HR Employment Services,LINCOLNSHIRE PART NHSFT(RP7),2000021324,29360.83
Department of Health,Leicestershire Partnership NHS Trust,08/07/21,NURSE - BAND 2 - AGENCY,Beechwood Ward,HCL NURSING,HNSI0000729,4127.56
Department of Health,Leicestershire Partnership NHS Trust,08/07/21,NURSE - BAND 5 - AGENCY,Beechwood Ward,HCL NURSING,HNSI0000729,2169.72
Department of Health,Leicestershire Partnership NHS Trust,08/07/21,NURSE - BAND 5 - AGENCY,City Planned Care - East,HCL NURSING,HNSI0000729,13952.57
Department of Health,Leicestershire Partnership NHS Trust,08/07/21,NURSE - BAND 5 - AGENCY,City Planned Care - West,HCL NURSING,HNSI0000729,13131.77
Department of Health,Leicestershire Partnership NHS Trust,08/07/21,Nurse - Band 6 -Agency,City West CMHT MHSOP,HCL NURSING,HNSI0000729,837.00
Department of Health,Leicestershire Partnership NHS Trust,08/07/21,NURSE - BAND 2 - AGENCY,Clarendon Ward,HCL NURSING,HNSI0000729,2921.32
Department of Health,Leicestershire Partnership NHS Trust,08/07/21,NURSE - BAND 5 - AGENCY,Clarendon Ward,HCL NURSING,HNSI0000729,5195.30
Department of Health,Leicestershire Partnership NHS Trust,08/07/21,NURSE - BAND 2 - AGENCY,Coalville Snibston Ward,HCL NURSING,HNSI0000729,2010.83
Department of Health,Leicestershire Partnership NHS Trust,08/07/21,NURSE - BAND 5 - AGENCY,Coalville Snibston Ward,HCL NURSING,HNSI0000729,2116.08
Department of Health,Leicestershire Partnership NHS Trust,08/07/21,NURSE - BAND 2 - AGENCY,Coalville Ward 2,HCL NURSING,HNSI0000729,254.94
Department of Health,Leicestershire Partnership NHS Trust,08/07/21,NURSE - BAND 5 - AGENCY,Coalville Ward 2,HCL NURSING,HNSI0000729,1562.80
Department of Health,Leicestershire Partnership NHS Trust,08/07/21,NURSE - BAND 2 - AGENCY,Dalgliesh Ward,HCL NURSING,HNSI0000729,1581.40
Department of Health,Leicestershire Partnership NHS Trust,08/07/21,NURSE - BAND 5 - AGENCY,Dalgliesh Ward,HCL NURSING,HNSI0000729,2645.25
Department of Health,Leicestershire Partnership NHS Trust,08/07/21,NURSE - BAND 2 - AGENCY,H&B Comm Hosp East Ward,HCL NURSING,HNSI0000729,4329.61
Department of Health,Leicestershire Partnership NHS Trust,08/07/21,NURSE - BAND 5 - AGENCY,H&B Comm Hosp East Ward,HCL NURSING,HNSI0000729,4888.88
Department of Health,Leicestershire Partnership NHS Trust,08/07/21,NURSE - BAND 2 - AGENCY,H&B Comm Hosp North Ward,HCL NURSING,HNSI0000729,1974.54
Department of Health,Leicestershire Partnership NHS Trust,08/07/21,NURSE - BAND 5 - AGENCY,H&B Comm Hosp North Ward,HCL NURSING,HNSI0000729,3516.03
Department of Health,Leicestershire Partnership NHS Trust,08/07/21,NURSE - BAND 5 - AGENCY,Lough Swithland Ward,HCL NURSING,HNSI0000729,986.70
Department of Health,Leicestershire Partnership NHS Trust,08/07/21,NURSE - BAND 2 - AGENCY,Rutland Ward Nursing,HCL NURSING,HNSI0000729,482.75
Department of Health,Leicestershire Partnership NHS Trust,08/07/21,NURSE - BAND 5 - AGENCY,Rutland Ward Nursing,HCL NURSING,HNSI0000729,1887.60
Department of Health,Leicestershire Partnership NHS Trust,08/07/21,NURSE - BAND 2 - AGENCY,St Lukes Stroke Ward,HCL NURSING,HNSI0000729,426.52
Department of Health,Leicestershire Partnership NHS Trust,08/07/21,NURSE - BAND 2 - AGENCY,St Lukes Ward 3,HCL NURSING,HNSI0000729,344.03
Department of Health,Leicestershire Partnership NHS Trust,08/07/21,NURSE - BAND 5 - AGENCY,St Lukes Ward 3,HCL NURSING,HNSI0000729,726.03
Department of Health,Leicestershire Partnership NHS Trust,08/07/21,NURSE - BAND 2 - AGENCY,Wakerley Ward,HCL NURSING,HNSI0000729,2479.23
Department of Health,Leicestershire Partnership NHS Trust,08/07/21,NURSE - BAND 5 - AGENCY,Wakerley Ward,HCL NURSING,HNSI0000729,8496.18
Department of Health,Leicestershire Partnership NHS Trust,08/07/21,NURSE - BAND 2 - AGENCY,Beechwood Ward,HCL NURSING,HNSI0000724,4442.02
Department of Health,Leicestershire Partnership NHS Trust,08/07/21,NURSE - BAND 5 - AGENCY,Beechwood Ward,HCL NURSING,HNSI0000724,1402.10
Department of Health,Leicestershire Partnership NHS Trust,08/07/21,NURSE - BAND 5 - AGENCY,City Planned Care - East,HCL NURSING,HNSI0000724,14768.72
Department of Health,Leicestershire Partnership NHS Trust,08/07/21,NURSE - BAND 5 - AGENCY,City Planned Care - West,HCL NURSING,HNSI0000724,11527.62
Department of Health,Leicestershire Partnership NHS Trust,08/07/21,NURSE - BAND 2 - AGENCY,Clarendon Ward,HCL NURSING,HNSI0000724,2951.21
Department of Health,Leicestershire Partnership NHS Trust,08/07/21,NURSE - BAND 5 - AGENCY,Clarendon Ward,HCL NURSING,HNSI0000724,3668.79
Department of Health,Leicestershire Partnership NHS Trust,08/07/21,NURSE - BAND 2 - AGENCY,Coalville Snibston Ward,HCL NURSING,HNSI0000724,3497.51
Department of Health,Leicestershire Partnership NHS Trust,08/07/21,NURSE - BAND 5 - AGENCY,Coalville Snibston Ward,HCL NURSING,HNSI0000724,2104.69
Department of Health,Leicestershire Partnership NHS Trust,08/07/21,NURSE - BAND 2 - AGENCY,Coalville Ward 2,HCL NURSING,HNSI0000724,240.34
Department of Health,Leicestershire Partnership NHS Trust,08/07/21,NURSE - BAND 5 - AGENCY,Coalville Ward 2,HCL NURSING,HNSI0000724,1320.00
Department of Health,Leicestershire Partnership NHS Trust,08/07/21,NURSE - BAND 5 - AGENCY,Coleman Ward,HCL NURSING,HNSI0000724,312.74
Department of Health,Leicestershire Partnership NHS Trust,08/07/21,NURSE - BAND 2 - AGENCY,Dalgliesh Ward,HCL NURSING,HNSI0000724,2107.21
Department of Health,Leicestershire Partnership NHS Trust,08/07/21,NURSE - BAND 2 - AGENCY,H&B Comm Hosp East Ward,HCL NURSING,HNSI0000724,5136.23
Department of Health,Leicestershire Partnership NHS Trust,08/07/21,NURSE - BAND 5 - AGENCY,H&B Comm Hosp East Ward,HCL NURSING,HNSI0000724,5720.13
Department of Health,Leicestershire Partnership NHS Trust,08/07/21,NURSE - BAND 2 - AGENCY,H&B Comm Hosp North Ward,HCL NURSING,HNSI0000724,2029.79
Department of Health,Leicestershire Partnership NHS Trust,08/07/21,NURSE - BAND 5 - AGENCY,H&B Comm Hosp North Ward,HCL NURSING,HNSI0000724,2913.54
Department of Health,Leicestershire Partnership NHS Trust,08/07/21,NURSE - BAND 5 - AGENCY,Lough Swithland Ward,HCL NURSING,HNSI0000724,1687.35
Department of Health,Leicestershire Partnership NHS Trust,08/07/21,NURSE - BAND 2 - AGENCY,Rutland Ward Nursing,HCL NURSING,HNSI0000724,468.20
Department of Health,Leicestershire Partnership NHS Trust,08/07/21,NURSE - BAND 5 - AGENCY,Rutland Ward Nursing,HCL NURSING,HNSI0000724,2099.36
Department of Health,Leicestershire Partnership NHS Trust,08/07/21,NURSE - BAND 2 - AGENCY,St Lukes Stroke Ward,HCL NURSING,HNSI0000724,1616.07
Department of Health,Leicestershire Partnership NHS Trust,08/07/21,NURSE - BAND 2 - AGENCY,St Lukes Ward 3,HCL NURSING,HNSI0000724,213.26
Department of Health,Leicestershire Partnership NHS Trust,08/07/21,NURSE - BAND 5 - AGENCY,St Lukes Ward 3,HCL NURSING,HNSI0000724,386.05
Department of Health,Leicestershire Partnership NHS Trust,08/07/21,NURSE - BAND 2 - AGENCY,Wakerley Ward,HCL NURSING,HNSI0000724,4304.41
Department of Health,Leicestershire Partnership NHS Trust,08/07/21,NURSE - BAND 5 - AGENCY,Wakerley Ward,HCL NURSING,HNSI0000724,7537.74
Department of Health,Leicestershire Partnership NHS Trust,08/07/21,Healthcare Services / Recharges from Non-NHS Bodies,Adult Eating Disorder Collaborative,RIVERDALE GRANGE LIMITED,816,220000.00
Department of Health,Leicestershire Partnership NHS Trust,09/07/21,Tax/SS Crs-LT1y-Deduction-Ers P11D,Balance Sheet Collection,H M REVENUE & CUSTOMS (IRT813),267PK001110872113A,141122.28
Department of Health,Leicestershire Partnership NHS Trust,12/07/21,NURSE - BAND 2 - AGENCY,Beechwood Ward,HCL NURSING,HNSI0000719,3861.97
Department of Health,Leicestershire Partnership NHS Trust,12/07/21,NURSE - BAND 5 - AGENCY,Beechwood Ward,HCL NURSING,HNSI0000719,1863.74
Department of Health,Leicestershire Partnership NHS Trust,12/07/21,NURSE - BAND 5 - AGENCY,City Planned Care - East,HCL NURSING,HNSI0000719,14986.74
Department of Health,Leicestershire Partnership NHS Trust,12/07/21,NURSE - BAND 5 - AGENCY,City Planned Care - West,HCL NURSING,HNSI0000719,12842.13
Department of Health,Leicestershire Partnership NHS Trust,12/07/21,Nurse - Band 6 -Agency,City West CMHT MHSOP,HCL NURSING,HNSI0000719,1883.25
Department of Health,Leicestershire Partnership NHS Trust,12/07/21,NURSE - BAND 2 - AGENCY,Clarendon Ward,HCL NURSING,HNSI0000719,3059.62
Department of Health,Leicestershire Partnership NHS Trust,12/07/21,NURSE - BAND 5 - AGENCY,Clarendon Ward,HCL NURSING,HNSI0000719,3518.27
Department of Health,Leicestershire Partnership NHS Trust,12/07/21,NURSE - BAND 2 - AGENCY,Coalville Snibston Ward,HCL NURSING,HNSI0000719,1284.84
Department of Health,Leicestershire Partnership NHS Trust,12/07/21,NURSE - BAND 5 - AGENCY,Coalville Snibston Ward,HCL NURSING,HNSI0000719,732.79
Department of Health,Leicestershire Partnership NHS Trust,12/07/21,NURSE - BAND 2 - AGENCY,Coalville Ward 2,HCL NURSING,HNSI0000719,98.52
Department of Health,Leicestershire Partnership NHS Trust,12/07/21,NURSE - BAND 5 - AGENCY,Coalville Ward 2,HCL NURSING,HNSI0000719,1558.55
Department of Health,Leicestershire Partnership NHS Trust,12/07/21,NURSE - BAND 5 - AGENCY,Coleman Ward,HCL NURSING,HNSI0000719,966.40
Department of Health,Leicestershire Partnership NHS Trust,12/07/21,NURSE - BAND 2 - AGENCY,Dalgliesh Ward,HCL NURSING,HNSI0000719,1423.28
Department of Health,Leicestershire Partnership NHS Trust,12/07/21,NURSE - BAND 5 - AGENCY,Dalgliesh Ward,HCL NURSING,HNSI0000719,525.35
Department of Health,Leicestershire Partnership NHS Trust,12/07/21,NURSE - BAND 2 - AGENCY,H&B Comm Hosp East Ward,HCL NURSING,HNSI0000719,3219.70
Department of Health,Leicestershire Partnership NHS Trust,12/07/21,NURSE - BAND 5 - AGENCY,H&B Comm Hosp East Ward,HCL NURSING,HNSI0000719,2575.89
Department of Health,Leicestershire Partnership NHS Trust,12/07/21,NURSE - BAND 2 - AGENCY,H&B Comm Hosp North Ward,HCL NURSING,HNSI0000719,3384.13
Department of Health,Leicestershire Partnership NHS Trust,12/07/21,NURSE - BAND 5 - AGENCY,H&B Comm Hosp North Ward,HCL NURSING,HNSI0000719,2872.25
Department of Health,Leicestershire Partnership NHS Trust,12/07/21,NURSE - BAND 5 - AGENCY,Lough Swithland Ward,HCL NURSING,HNSI0000719,2288.00
Department of Health,Leicestershire Partnership NHS Trust,12/07/21,NURSE - BAND 2 - AGENCY,Rutland Ward Nursing,HCL NURSING,HNSI0000719,921.78
Department of Health,Leicestershire Partnership NHS Trust,12/07/21,NURSE - BAND 5 - AGENCY,Rutland Ward Nursing,HCL NURSING,HNSI0000719,2069.88
Department of Health,Leicestershire Partnership NHS Trust,12/07/21,NURSE - BAND 2 - AGENCY,St Lukes Stroke Ward,HCL NURSING,HNSI0000719,567.24
Department of Health,Leicestershire Partnership NHS Trust,12/07/21,NURSE - BAND 5 - AGENCY,St Lukes Stroke Ward,HCL NURSING,HNSI0000719,3409.71
Department of Health,Leicestershire Partnership NHS Trust,12/07/21,NURSE - BAND 2 - AGENCY,St Lukes Ward 3,HCL NURSING,HNSI0000719,562.71
Department of Health,Leicestershire Partnership NHS Trust,12/07/21,NURSE - BAND 5 - AGENCY,St Lukes Ward 3,HCL NURSING,HNSI0000719,386.05
Department of Health,Leicestershire Partnership NHS Trust,12/07/21,NURSE - BAND 2 - AGENCY,Wakerley Ward,HCL NURSING,HNSI0000719,3662.40
Department of Health,Leicestershire Partnership NHS Trust,12/07/21,NURSE - BAND 5 - AGENCY,Wakerley Ward,HCL NURSING,HNSI0000719,7719.51
Department of Health,Leicestershire Partnership NHS Trust,12/07/21,Crs_NHS_LT1y -Resus Inventory Supplied.,Balance Sheet Collection,SUPPLY CHAIN CO LTD,1122062965,35813.56
Department of Health,Leicestershire Partnership NHS Trust,12/07/21,Healthcare Services / Recharges from Non-NHS Bodies,Adult Eating Disorder Collaborative,PRIORY GROUP,JUN21COL,103498.05
Department of Health,Leicestershire Partnership NHS Trust,14/07/21,Insurance Costs,Chief Executives Office,NHS LITIGATION AUTHORITY,SICX405817,165217.80
Department of Health,Leicestershire Partnership NHS Trust,15/07/21,WIP Project Not in BS - Information Technology,Work in Progress,BRIDGES SELF MANAGEMENT LTD,BSM-342,27469.17
Department of Health,Leicestershire Partnership NHS Trust,16/07/21,NURSE - BAND 2 - AGENCY,CAMHS Inpatient Service,HCL NURSING,HNSI0000725,15649.92
Department of Health,Leicestershire Partnership NHS Trust,16/07/21,Nurse - Band 6 -Agency,CAMHS Waiting List Monies,HCL NURSING,HNSI0000725,2093.46
Department of Health,Leicestershire Partnership NHS Trust,16/07/21,NURSE - BAND 2 - AGENCY,Langley Ward ED Inpatient Service,HCL NURSING,HNSI0000725,2349.76
Department of Health,Leicestershire Partnership NHS Trust,16/07/21,NURSE - BAND 5 - AGENCY,Langley Ward ED Inpatient Service,HCL NURSING,HNSI0000725,4822.28
Department of Health,Leicestershire Partnership NHS Trust,16/07/21,Nurse - Band 6 -Agency,AMH - Central Access Point,HCL NURSING,HNSI0000718,5917.00
Department of Health,Leicestershire Partnership NHS Trust,16/07/21,Nurse - Band 6 -Agency,Adult City East CMHT - Merlyn Vaz,HCL NURSING,HNSI0000718,1488.47
Department of Health,Leicestershire Partnership NHS Trust,16/07/21,Nurse - Band 6 -Agency,Adult County Charnwood CMHT - Loughborough Base,HCL NURSING,HNSI0000718,1377.01
Department of Health,Leicestershire Partnership NHS Trust,16/07/21,Nurse - Band 6 -Agency,Adult County West Leicestershire CMHT,HCL NURSING,HNSI0000718,1069.97
Department of Health,Leicestershire Partnership NHS Trust,16/07/21,NURSE - BAND 2 - AGENCY,Agnes Unit Management,HCL NURSING,HNSI0000718,18291.00
Department of Health,Leicestershire Partnership NHS Trust,16/07/21,NURSE - BAND 5 - AGENCY,Agnes Unit Management,HCL NURSING,HNSI0000718,12724.84
Department of Health,Leicestershire Partnership NHS Trust,16/07/21,NURSE - BAND 2 - AGENCY,Ashby Ward (Bradgate Unit),HCL NURSING,HNSI0000718,452.62
Department of Health,Leicestershire Partnership NHS Trust,16/07/21,NURSE - BAND 5 - AGENCY,Ashby Ward (Bradgate Unit),HCL NURSING,HNSI0000718,329.84
Department of Health,Leicestershire Partnership NHS Trust,16/07/21,NURSE - BAND 2 - AGENCY,Aston Ward (Bradgate Unit),HCL NURSING,HNSI0000718,618.95
Department of Health,Leicestershire Partnership NHS Trust,16/07/21,NURSE - BAND 2 - AGENCY,Beaumont Ward - Bradgate Unit,HCL NURSING,HNSI0000718,3063.50
Department of Health,Leicestershire Partnership NHS Trust,16/07/21,NURSE - BAND 5 - AGENCY,Beaumont Ward - Bradgate Unit,HCL NURSING,HNSI0000718,1080.77
Department of Health,Leicestershire Partnership NHS Trust,16/07/21,NURSE - BAND 2 - AGENCY,Belvoir Psychiatric Intensive Care Unit,HCL NURSING,HNSI0000718,1196.33
Department of Health,Leicestershire Partnership NHS Trust,16/07/21,NURSE - BAND 5 - AGENCY,Belvoir Psychiatric Intensive Care Unit,HCL NURSING,HNSI0000718,2664.56
Department of Health,Leicestershire Partnership NHS Trust,16/07/21,Nurse - Band 6 -Agency,City West CMHT MHSOP,HCL NURSING,HNSI0000718,1069.97
Department of Health,Leicestershire Partnership NHS Trust,16/07/21,NURSE - BAND 2 - AGENCY,Coleman Ward,HCL NURSING,HNSI0000718,11948.92
Department of Health,Leicestershire Partnership NHS Trust,16/07/21,NURSE - BAND 5 - AGENCY,Coleman Ward,HCL NURSING,HNSI0000718,2621.60
Department of Health,Leicestershire Partnership NHS Trust,16/07/21,NURSE - BAND 2 - AGENCY,Griffin Ward (HPC),HCL NURSING,HNSI0000718,611.43
Department of Health,Leicestershire Partnership NHS Trust,16/07/21,NURSE - BAND 2 - AGENCY,Gwendolen Ward,HCL NURSING,HNSI0000718,523.18
Department of Health,Leicestershire Partnership NHS Trust,16/07/21,NURSE - BAND 2 - AGENCY,Heather Ward,HCL NURSING,HNSI0000718,370.20
Department of Health,Leicestershire Partnership NHS Trust,16/07/21,NURSE - BAND 2 - AGENCY,Kirby Ward,HCL NURSING,HNSI0000718,1140.06
Department of Health,Leicestershire Partnership NHS Trust,16/07/21,NURSE - BAND 5 - AGENCY,Kirby Ward,HCL NURSING,HNSI0000718,361.21
Department of Health,Leicestershire Partnership NHS Trust,16/07/21,Nurse - Band 6 -Agency,Mental Health Triage Team,HCL NURSING,HNSI0000718,1522.92
Department of Health,Leicestershire Partnership NHS Trust,16/07/21,NURSE - BAND 2 - AGENCY,Mill Lodge,HCL NURSING,HNSI0000718,2296.62
Department of Health,Leicestershire Partnership NHS Trust,16/07/21,NURSE - BAND 2 - AGENCY,Phoenix Ward (HPC),HCL NURSING,HNSI0000718,174.73
Department of Health,Leicestershire Partnership NHS Trust,16/07/21,NURSE - BAND 5 - AGENCY,Phoenix Ward (HPC),HCL NURSING,HNSI0000718,673.20
Department of Health,Leicestershire Partnership NHS Trust,16/07/21,NURSE - BAND 5 - AGENCY,Place Of Safety Assessment Unit,HCL NURSING,HNSI0000718,329.84
Department of Health,Leicestershire Partnership NHS Trust,16/07/21,NURSE - BAND 5 - AGENCY,Stewart House,HCL NURSING,HNSI0000718,575.89
Department of Health,Leicestershire Partnership NHS Trust,16/07/21,NURSE - BAND 2 - AGENCY,Thornton Ward - Bradgate Unit,HCL NURSING,HNSI0000718,174.73
Department of Health,Leicestershire Partnership NHS Trust,16/07/21,NURSE - BAND 2 - AGENCY,Watermead Ward (Bradgate Unit),HCL NURSING,HNSI0000718,399.85
Department of Health,Leicestershire Partnership NHS Trust,16/07/21,NURSE - BAND 2 - AGENCY,Welford Ward,HCL NURSING,HNSI0000718,1395.11
Department of Health,Leicestershire Partnership NHS Trust,16/07/21,Nurse - Band 6 -Agency,CAMHS HUB / CAP,HCL SOCIAL CARE,HWSI0000627,12185.78
Department of Health,Leicestershire Partnership NHS Trust,16/07/21,Nurse - Band 6 -Agency,CAMHS Waiting List Monies,HCL SOCIAL CARE,HWSI0000627,18538.32
Department of Health,Leicestershire Partnership NHS Trust,16/07/21,Nurse - Band 6 -Agency,Crisis Response and Home Treatment,HCL SOCIAL CARE,HWSI0000627,2182.37
Department of Health,Leicestershire Partnership NHS Trust,16/07/21,External Consultancy Fees,Mobile Media Devices Management,JIMMY ENDICOTT,20/21,60875.50
Department of Health,Leicestershire Partnership NHS Trust,16/07/21,Photocopying,Estates & Facilities Central,LEXMARK INTERNATIONAL LTD,900650301287,34612.91
Department of Health,Leicestershire Partnership NHS Trust,19/07/21,Crs_NHS_LT1y -Resus Inventory Supplied.,Balance Sheet Collection,SUPPLY CHAIN CO LTD,1122066683,32217.77
Department of Health,Leicestershire Partnership NHS Trust,19/07/21,WIP Project Not in BS - Buildings excl Dwellings,Work in Progress,TILBURY DOUGLAS CONSTRUCTION LTD,TMP02164,106942.21
Department of Health,Leicestershire Partnership NHS Trust,19/07/21,WIP Project Not in BS - Buildings excl Dwellings,Work in Progress,TILBURY DOUGLAS CONSTRUCTION LTD,TMP02166,45725.11
Department of Health,Leicestershire Partnership NHS Trust,20/07/21,Med GP Trainees,Medical Trainees,ST.HELENS & KNOWSLEY NHS TRUST,16806798,75000.00
Department of Health,Leicestershire Partnership NHS Trust,21/07/21,Rent,"St Peters Health Center (Part 1st and 2nd floors) (P66, LPT)",LEICESTER LIFT CO,LEP1/SI0810,27433.45
Department of Health,Leicestershire Partnership NHS Trust,21/07/21,Landline Telephone Rental / Calls,"Beaumont Leys Health Centre (P94, LPT)",VIRGIN MEDIA BUSINESS,853083001/004/0721,378.47
Department of Health,Leicestershire Partnership NHS Trust,21/07/21,Landline Telephone Rental / Calls,Belgrave Health Centre (CHP),VIRGIN MEDIA BUSINESS,853083001/004/0721,-193.50
Department of Health,Leicestershire Partnership NHS Trust,21/07/21,Landline Telephone Rental / Calls,"Bennion Centre (including Forest Grange Day Unit) (P8, LPT)",VIRGIN MEDIA BUSINESS,853083001/004/0721,7.74
Department of Health,Leicestershire Partnership NHS Trust,21/07/21,Landline Telephone Rental / Calls,"Bradgate Unit (including Glenvale day Unit) (P7, LPT)",VIRGIN MEDIA BUSINESS,853083001/004/0721,8016.07
Department of Health,Leicestershire Partnership NHS Trust,21/07/21,Landline Telephone Rental / Calls,Braunstone Health and Social Care Centre (Part) (PROPCO),VIRGIN MEDIA BUSINESS,853083001/004/0721,1045.69
Department of Health,Leicestershire Partnership NHS Trust,21/07/21,Landline Telephone Rental / Calls,Bridge Park Plaza - First Floor (LPT),VIRGIN MEDIA BUSINESS,853083001/004/0721,4482.48
Department of Health,Leicestershire Partnership NHS Trust,21/07/21,Landline Telephone Rental / Calls,"Coalville Community Hospital (P138, LPT)",VIRGIN MEDIA BUSINESS,853083001/004/0721,1627.17
Department of Health,Leicestershire Partnership NHS Trust,21/07/21,Landline Telephone Rental / Calls,"Coalville Health Centre (P121, LPT)",VIRGIN MEDIA BUSINESS,853083001/004/0721,151.72
Department of Health,Leicestershire Partnership NHS Trust,21/07/21,Landline Telephone Rental / Calls,County Hall,VIRGIN MEDIA BUSINESS,853083001/004/0721,7378.87
Department of Health,Leicestershire Partnership NHS Trust,21/07/21,Landline Telephone Rental / Calls,Estates & Facilities Central,VIRGIN MEDIA BUSINESS,853083001/004/0721,-419.24
Department of Health,Leicestershire Partnership NHS Trust,21/07/21,Landline Telephone Rental / Calls,"Evington Centre (P6, LPT)",VIRGIN MEDIA BUSINESS,853083001/004/0721,1805.90
Department of Health,Leicestershire Partnership NHS Trust,21/07/21,Landline Telephone Rental / Calls,HIS,VIRGIN MEDIA BUSINESS,853083001/004/0721,3193.10
Department of Health,Leicestershire Partnership NHS Trust,21/07/21,Landline Telephone Rental / Calls,"Hawthorne Centre - Coalville (P14, LPT)",VIRGIN MEDIA BUSINESS,853083001/004/0721,498.05
Department of Health,Leicestershire Partnership NHS Trust,21/07/21,Landline Telephone Rental / Calls,Hinckley & District Hospital (PROPCO),VIRGIN MEDIA BUSINESS,853083001/004/0721,-397.36
Department of Health,Leicestershire Partnership NHS Trust,21/07/21,Landline Telephone Rental / Calls,"Hinckley and Bosworth Community Hospital (Sunnyside) (P133, LPT)",VIRGIN MEDIA BUSINESS,853083001/004/0721,1045.46
Department of Health,Leicestershire Partnership NHS Trust,21/07/21,Landline Telephone Rental / Calls,Hood Park Leisure Centre Clinic,VIRGIN MEDIA BUSINESS,853083001/004/0721,23.22
Department of Health,Leicestershire Partnership NHS Trust,21/07/21,Landline Telephone Rental / Calls,"Hynca Lodge (P33, LPT)",VIRGIN MEDIA BUSINESS,853083001/004/0721,381.29
Department of Health,Leicestershire Partnership NHS Trust,21/07/21,Landline Telephone Rental / Calls,"Legion House, Ashby",VIRGIN MEDIA BUSINESS,853083001/004/0721,51.00
Department of Health,Leicestershire Partnership NHS Trust,21/07/21,Landline Telephone Rental / Calls,Loughborough Health Centre (PROPCO),VIRGIN MEDIA BUSINESS,853083001/004/0721,-4.30
Department of Health,Leicestershire Partnership NHS Trust,21/07/21,Landline Telephone Rental / Calls,"Loughborough Hospital (P136, LPT)",VIRGIN MEDIA BUSINESS,853083001/004/0721,4594.37
Department of Health,Leicestershire Partnership NHS Trust,21/07/21,Landline Telephone Rental / Calls,Mawson House (LPT),VIRGIN MEDIA BUSINESS,853083001/004/0721,522.61
Department of Health,Leicestershire Partnership NHS Trust,21/07/21,Landline Telephone Rental / Calls,Melbourne Centre (Pt Grnd flr) (PROPCO),VIRGIN MEDIA BUSINESS,853083001/004/0721,-3.66
Department of Health,Leicestershire Partnership NHS Trust,21/07/21,Landline Telephone Rental / Calls,Melton Mowbray Hospital (previously St. Mary's) (PROPCO),VIRGIN MEDIA BUSINESS,853083001/004/0721,-653.28
Department of Health,Leicestershire Partnership NHS Trust,21/07/21,Landline Telephone Rental / Calls,Merlyn Vaz Centre (CHP),VIRGIN MEDIA BUSINESS,853083001/004/0721,1274.02
Department of Health,Leicestershire Partnership NHS Trust,21/07/21,Landline Telephone Rental / Calls,"Mett Centre (P49, LPT)",VIRGIN MEDIA BUSINESS,853083001/004/0721,88.76
Department of Health,Leicestershire Partnership NHS Trust,21/07/21,Landline Telephone Rental / Calls,NSPCC Training Cente,VIRGIN MEDIA BUSINESS,853083001/004/0721,159.96
Department of Health,Leicestershire Partnership NHS Trust,21/07/21,Landline Telephone Rental / Calls,New Parks Health Centre (PROPCO),VIRGIN MEDIA BUSINESS,853083001/004/0721,1736.73
Department of Health,Leicestershire Partnership NHS Trust,21/07/21,Landline Telephone Rental / Calls,"OSL House (P54, LPT)",VIRGIN MEDIA BUSINESS,853083001/004/0721,1297.76
Department of Health,Leicestershire Partnership NHS Trust,21/07/21,Landline Telephone Rental / Calls,"Orchard Resource Centre (P15, LPT)",VIRGIN MEDIA BUSINESS,853083001/004/0721,703.84
Department of Health,Leicestershire Partnership NHS Trust,21/07/21,Landline Telephone Rental / Calls,Pasley Road Health Centre (PROPCO),VIRGIN MEDIA BUSINESS,853083001/004/0721,117.68
Department of Health,Leicestershire Partnership NHS Trust,21/07/21,Landline Telephone Rental / Calls,"Prince Philip House (P96, LPT)",VIRGIN MEDIA BUSINESS,853083001/004/0721,1789.68
Department of Health,Leicestershire Partnership NHS Trust,21/07/21,Landline Telephone Rental / Calls,Rushey Mead Health Centre (PROPCO),VIRGIN MEDIA BUSINESS,853083001/004/0721,82.58
Department of Health,Leicestershire Partnership NHS Trust,21/07/21,Landline Telephone Rental / Calls,"Shepshed Health Centre (P123, LPT)",VIRGIN MEDIA BUSINESS,853083001/004/0721,12.73
Department of Health,Leicestershire Partnership NHS Trust,21/07/21,Landline Telephone Rental / Calls,"Springfield Road Health Centre (P92, LPT)",VIRGIN MEDIA BUSINESS,853083001/004/0721,365.06
Department of Health,Leicestershire Partnership NHS Trust,21/07/21,Landline Telephone Rental / Calls,"St Peters Health Center (Part 1st and 2nd floors) (P66, LPT)",VIRGIN MEDIA BUSINESS,853083001/004/0721,1895.85
Department of Health,Leicestershire Partnership NHS Trust,21/07/21,Landline Telephone Rental / Calls,"Stewart House (P61, LPT)",VIRGIN MEDIA BUSINESS,853083001/004/0721,7.74
Department of Health,Leicestershire Partnership NHS Trust,21/07/21,Landline Telephone Rental / Calls,"Swithland House - London Road 352 (P44, LPT)",VIRGIN MEDIA BUSINESS,853083001/004/0721,482.55
Department of Health,Leicestershire Partnership NHS Trust,21/07/21,Landline Telephone Rental / Calls,"The Cedars (P19, LPT)",VIRGIN MEDIA BUSINESS,853083001/004/0721,704.26
Department of Health,Leicestershire Partnership NHS Trust,21/07/21,Landline Telephone Rental / Calls,"The Willows - Cordelia Close (P22, LPT)",VIRGIN MEDIA BUSINESS,853083001/004/0721,459.39
Department of Health,Leicestershire Partnership NHS Trust,21/07/21,Landline Telephone Rental / Calls,Uppingham Road Health Centre (PROPCO),VIRGIN MEDIA BUSINESS,853083001/004/0721,-146.20
Department of Health,Leicestershire Partnership NHS Trust,21/07/21,Landline Telephone Rental / Calls,"Valentine Centre (P3, LPT)",VIRGIN MEDIA BUSINESS,853083001/004/0721,2050.45
Department of Health,Leicestershire Partnership NHS Trust,21/07/21,Landline Telephone Rental / Calls,Warren Park Way 25 (PROPCO),VIRGIN MEDIA BUSINESS,853083001/004/0721,707.03
Department of Health,Leicestershire Partnership NHS Trust,21/07/21,Landline Telephone Rental / Calls,"Westcotes Group -Westcotes House (P78, LPT)",VIRGIN MEDIA BUSINESS,853083001/004/0721,1716.75
Department of Health,Leicestershire Partnership NHS Trust,21/07/21,Landline Telephone Rental / Calls,Westcotes Health Centre (CHP),VIRGIN MEDIA BUSINESS,853083001/004/0721,-438.60
Department of Health,Leicestershire Partnership NHS Trust,21/07/21,Landline Telephone Rental / Calls,"Winstanley Drive Health Centre (P8, LPT)",VIRGIN MEDIA BUSINESS,853083001/004/0721,442.28
Department of Health,Leicestershire Partnership NHS Trust,21/07/21,Gas,"Beaumont Leys Health Centre (P94, LPT)",TOTAL GAS & POWER LTD,242640359/21,530.00
Department of Health,Leicestershire Partnership NHS Trust,21/07/21,Gas,"Bradgate Unit (including Glenvale day Unit) (P7, LPT)",TOTAL GAS & POWER LTD,242640359/21,4598.38
Department of Health,Leicestershire Partnership NHS Trust,21/07/21,Gas,Bridge Park Plaza - First Floor (LPT),TOTAL GAS & POWER LTD,242640359/21,627.18
Department of Health,Leicestershire Partnership NHS Trust,21/07/21,Gas,"Bridge Park Road - Units 2 and 3 (P148, LPT)",TOTAL GAS & POWER LTD,242640359/21,162.14
Department of Health,Leicestershire Partnership NHS Trust,21/07/21,Gas,"Coalville Community Hospital (P138, LPT)",TOTAL GAS & POWER LTD,242640359/21,2564.53
Department of Health,Leicestershire Partnership NHS Trust,21/07/21,Gas,"Coalville Health Centre (P121, LPT)",TOTAL GAS & POWER LTD,242640359/21,237.67
Department of Health,Leicestershire Partnership NHS Trust,21/07/21,Gas,"Evington Centre (P6, LPT)",TOTAL GAS & POWER LTD,242640359/21,566.33
Department of Health,Leicestershire Partnership NHS Trust,21/07/21,Gas,"Farm Lodge (P34, LPT)",TOTAL GAS & POWER LTD,242640359/21,86.31
Department of Health,Leicestershire Partnership NHS Trust,21/07/21,Gas,"Feilding Palmer Hospital (Lutterworth) (P131, LPT)",TOTAL GAS & POWER LTD,242640359/21,697.64
Department of Health,Leicestershire Partnership NHS Trust,21/07/21,Gas,"Frith Cottages 3 & 4 (P36, LPT)",TOTAL GAS & POWER LTD,242640359/21,62.88
Department of Health,Leicestershire Partnership NHS Trust,21/07/21,Gas,HIS,TOTAL GAS & POWER LTD,242640359/21,39.91
Department of Health,Leicestershire Partnership NHS Trust,21/07/21,Gas,"Hawthorne Centre - Coalville (P14, LPT)",TOTAL GAS & POWER LTD,242640359/21,144.45
Department of Health,Leicestershire Partnership NHS Trust,21/07/21,Gas,"Hinckley and Bosworth Community Hospital (Sunnyside) (P133, LPT)",TOTAL GAS & POWER LTD,242640359/21,2797.76
Department of Health,Leicestershire Partnership NHS Trust,21/07/21,Gas,"Hynca Lodge (P33, LPT)",TOTAL GAS & POWER LTD,242640359/21,142.58
Department of Health,Leicestershire Partnership NHS Trust,21/07/21,Gas,"LGH - Gwendolen House (P4, LPT)",TOTAL GAS & POWER LTD,242640359/21,2938.42
Department of Health,Leicestershire Partnership NHS Trust,21/07/21,Gas,"Loughborough Hospital (P136, LPT)",TOTAL GAS & POWER LTD,242640359/21,5123.28
Department of Health,Leicestershire Partnership NHS Trust,21/07/21,Gas,Mawson House (LPT),TOTAL GAS & POWER LTD,242640359/21,69.87
Department of Health,Leicestershire Partnership NHS Trust,21/07/21,Gas,"Mett Centre (P49, LPT)",TOTAL GAS & POWER LTD,242640359/21,129.82
Department of Health,Leicestershire Partnership NHS Trust,21/07/21,Gas,"Narborough Health Centre (P117, LPT)",TOTAL GAS & POWER LTD,242640359/21,160.73
Department of Health,Leicestershire Partnership NHS Trust,21/07/21,Gas,"Neville Centre - LGH (was DSC) (P147, LPT)",TOTAL GAS & POWER LTD,242640359/21,390.14
Department of Health,Leicestershire Partnership NHS Trust,21/07/21,Gas,"OSL House (P54, LPT)",TOTAL GAS & POWER LTD,242640359/21,186.49
Department of Health,Leicestershire Partnership NHS Trust,21/07/21,Gas,"Orchard Resource Centre (P15, LPT)",TOTAL GAS & POWER LTD,242640359/21,143.30
Department of Health,Leicestershire Partnership NHS Trust,21/07/21,Gas,"Rubicon Close 3 (P56, LPT)",TOTAL GAS & POWER LTD,242640359/21,75.91
Department of Health,Leicestershire Partnership NHS Trust,21/07/21,Gas,"Rutland Memorial Hospital (P134, LPT)",TOTAL GAS & POWER LTD,242640359/21,585.49
Department of Health,Leicestershire Partnership NHS Trust,21/07/21,Gas,"Shepshed Health Centre (P123, LPT)",TOTAL GAS & POWER LTD,242640359/21,212.44
Department of Health,Leicestershire Partnership NHS Trust,21/07/21,Gas,"Springfield Road Health Centre (P92, LPT)",TOTAL GAS & POWER LTD,242640359/21,111.47
Department of Health,Leicestershire Partnership NHS Trust,21/07/21,Gas,"Stewart House (P61, LPT)",TOTAL GAS & POWER LTD,242640359/21,1638.04
Department of Health,Leicestershire Partnership NHS Trust,21/07/21,Gas,"Swithland House - London Road 352 (P44, LPT)",TOTAL GAS & POWER LTD,242640359/21,340.58
Department of Health,Leicestershire Partnership NHS Trust,21/07/21,Gas,"The Agnes Unit (AKA Assessment and Treatment Centre) (P85, LPT)",TOTAL GAS & POWER LTD,242640359/21,1224.23
Department of Health,Leicestershire Partnership NHS Trust,21/07/21,Gas,The Beacon,TOTAL GAS & POWER LTD,242640359/21,382.92
Department of Health,Leicestershire Partnership NHS Trust,21/07/21,Gas,"The Cedars (P19, LPT)",TOTAL GAS & POWER LTD,242640359/21,88.26
Department of Health,Leicestershire Partnership NHS Trust,21/07/21,Gas,"The Grange 1 (P4, LPT)",TOTAL GAS & POWER LTD,242640359/21,102.99
Department of Health,Leicestershire Partnership NHS Trust,21/07/21,Gas,"The Grange 2 (P41, LPT)",TOTAL GAS & POWER LTD,242640359/21,73.53
Department of Health,Leicestershire Partnership NHS Trust,21/07/21,Gas,"The Willows - Cordelia Close (P22, LPT)",TOTAL GAS & POWER LTD,242640359/21,1066.90
Department of Health,Leicestershire Partnership NHS Trust,21/07/21,Gas,"Valentine Centre (P3, LPT)",TOTAL GAS & POWER LTD,242640359/21,903.03
Department of Health,Leicestershire Partnership NHS Trust,21/07/21,Gas,"Westcotes Group -Westcotes House (P78, LPT)",TOTAL GAS & POWER LTD,242640359/21,469.58
Department of Health,Leicestershire Partnership NHS Trust,21/07/21,Gas,"Winstanley Drive Health Centre (P8, LPT)",TOTAL GAS & POWER LTD,242640359/21,229.46
Department of Health,Leicestershire Partnership NHS Trust,21/07/21,FP10'S,Adult City Drugs,NHS BUS SERVICES AUTHORITY,1000069881,22786.36
Department of Health,Leicestershire Partnership NHS Trust,21/07/21,FP10'S,Adult County Drugs,NHS BUS SERVICES AUTHORITY,1000069881,23829.77
Department of Health,Leicestershire Partnership NHS Trust,21/07/21,FP10'S,CAMHS Outpatients,NHS BUS SERVICES AUTHORITY,1000069881,15869.88
Department of Health,Leicestershire Partnership NHS Trust,21/07/21,FP10'S,Children Services Medical,NHS BUS SERVICES AUTHORITY,1000069881,8645.40
Department of Health,Leicestershire Partnership NHS Trust,21/07/21,FP10'S,Dementia Related Drugs and Investigations,NHS BUS SERVICES AUTHORITY,1000069881,3655.86
Department of Health,Leicestershire Partnership NHS Trust,21/07/21,FP10'S,Eating Disorders Outpatient Service,NHS BUS SERVICES AUTHORITY,1000069881,1230.10
Department of Health,Leicestershire Partnership NHS Trust,21/07/21,FP10'S,Forensic Services - Community,NHS BUS SERVICES AUTHORITY,1000069881,261.54
Department of Health,Leicestershire Partnership NHS Trust,21/07/21,FP10'S,LOROS Pharmacy,NHS BUS SERVICES AUTHORITY,1000069881,489.77
Department of Health,Leicestershire Partnership NHS Trust,21/07/21,FP10'S,Liason Psychiatry Service,NHS BUS SERVICES AUTHORITY,1000069881,50.95
Department of Health,Leicestershire Partnership NHS Trust,21/07/21,FP10'S,Mental Health Liaison Team,NHS BUS SERVICES AUTHORITY,1000069881,2.07
Department of Health,Leicestershire Partnership NHS Trust,21/07/21,FP10'S,PIER Team - Early Intervention Services,NHS BUS SERVICES AUTHORITY,1000069881,10328.99
Department of Health,Leicestershire Partnership NHS Trust,21/07/21,FP10'S,Snr Med Staff (Inc Med Reps),NHS BUS SERVICES AUTHORITY,1000069881,3165.16
Department of Health,Leicestershire Partnership NHS Trust,22/07/21,UHL Facilities Management SLA,Estates & Facilities Central,UHL NHS TRUST (RWE),L0251992,940375.84
Department of Health,Leicestershire Partnership NHS Trust,23/07/21,Contract : Refuse Collection,"Beaumont Leys Health Centre (P94, LPT)",BIFFA WASTE SERVICES LTD,MAY2021,289.38
Department of Health,Leicestershire Partnership NHS Trust,23/07/21,Contract : Refuse Collection,"Bennion Centre (including Forest Grange Day Unit) (P8, LPT)",BIFFA WASTE SERVICES LTD,MAY2021,1298.03
Department of Health,Leicestershire Partnership NHS Trust,23/07/21,Contract : Refuse Collection,"Bradgate Unit (including Glenvale day Unit) (P7, LPT)",BIFFA WASTE SERVICES LTD,MAY2021,4737.76
Department of Health,Leicestershire Partnership NHS Trust,23/07/21,Contract : Refuse Collection,Bridge Park Plaza - First Floor (LPT),BIFFA WASTE SERVICES LTD,MAY2021,648.80
Department of Health,Leicestershire Partnership NHS Trust,23/07/21,Contract : Refuse Collection,Bridge Park Road (Unit C18) (LPT),BIFFA WASTE SERVICES LTD,MAY2021,252.34
Department of Health,Leicestershire Partnership NHS Trust,23/07/21,Contract : Refuse Collection,"Bridge Park Road - Units 2 and 3 (P148, LPT)",BIFFA WASTE SERVICES LTD,MAY2021,216.87
Department of Health,Leicestershire Partnership NHS Trust,23/07/21,Contract : Refuse Collection,"Central LPT Portering service – FE Builiding (P37, LPT)",BIFFA WASTE SERVICES LTD,MAY2021,715.90
Department of Health,Leicestershire Partnership NHS Trust,23/07/21,Contract : Refuse Collection,Charnwood Mill (PROPCO),BIFFA WASTE SERVICES LTD,MAY2021,548.04
Department of Health,Leicestershire Partnership NHS Trust,23/07/21,Contract : Refuse Collection,"Coalville Community Hospital (P138, LPT)",BIFFA WASTE SERVICES LTD,MAY2021,1888.56
Department of Health,Leicestershire Partnership NHS Trust,23/07/21,Contract : Refuse Collection,"Coalville Health Centre (P121, LPT)",BIFFA WASTE SERVICES LTD,MAY2021,407.91
Department of Health,Leicestershire Partnership NHS Trust,23/07/21,Contract : Refuse Collection,Estates & Facilities Central,BIFFA WASTE SERVICES LTD,MAY2021,0.00
Department of Health,Leicestershire Partnership NHS Trust,23/07/21,Contract : Refuse Collection,"Evington Centre (P6, LPT)",BIFFA WASTE SERVICES LTD,MAY2021,1689.56
Department of Health,Leicestershire Partnership NHS Trust,23/07/21,Contract : Refuse Collection,"Farm Lodge (P34, LPT)",BIFFA WASTE SERVICES LTD,MAY2021,153.08
Department of Health,Leicestershire Partnership NHS Trust,23/07/21,Contract : Refuse Collection,"Feilding Palmer Hospital (Lutterworth) (P131, LPT)",BIFFA WASTE SERVICES LTD,MAY2021,568.56
Department of Health,Leicestershire Partnership NHS Trust,23/07/21,Contract : Refuse Collection,HIS,BIFFA WASTE SERVICES LTD,MAY2021,212.02
Department of Health,Leicestershire Partnership NHS Trust,23/07/21,Contract : Refuse Collection,"Herschel Prins (P9, LPT)",BIFFA WASTE SERVICES LTD,MAY2021,575.05
Department of Health,Leicestershire Partnership NHS Trust,23/07/21,Contract : Refuse Collection,"Hinckley and Bosworth Community Hospital (Sunnyside) (P133, LPT)",BIFFA WASTE SERVICES LTD,MAY2021,932.33
Department of Health,Leicestershire Partnership NHS Trust,23/07/21,Contract : Refuse Collection,"Hynca Lodge (P33, LPT)",BIFFA WASTE SERVICES LTD,MAY2021,194.04
Department of Health,Leicestershire Partnership NHS Trust,23/07/21,Contract : Refuse Collection,"LGH - Gwendolen House (P4, LPT)",BIFFA WASTE SERVICES LTD,MAY2021,1240.47
Department of Health,Leicestershire Partnership NHS Trust,23/07/21,Contract : Refuse Collection,"Loughborough Hospital (P136, LPT)",BIFFA WASTE SERVICES LTD,MAY2021,2222.21
Department of Health,Leicestershire Partnership NHS Trust,23/07/21,Contract : Refuse Collection,Mawson House (LPT),BIFFA WASTE SERVICES LTD,MAY2021,207.92
Department of Health,Leicestershire Partnership NHS Trust,23/07/21,Contract : Refuse Collection,"Mett Centre (P49, LPT)",BIFFA WASTE SERVICES LTD,MAY2021,124.48
Department of Health,Leicestershire Partnership NHS Trust,23/07/21,Contract : Refuse Collection,Modular Training Building,BIFFA WASTE SERVICES LTD,MAY2021,166.00
Department of Health,Leicestershire Partnership NHS Trust,23/07/21,Contract : Refuse Collection,"Narborough Health Centre (P117, LPT)",BIFFA WASTE SERVICES LTD,MAY2021,164.57
Department of Health,Leicestershire Partnership NHS Trust,23/07/21,Contract : Refuse Collection,"Neville Centre - LGH (was DSC) (P147, LPT)",BIFFA WASTE SERVICES LTD,MAY2021,316.29
Department of Health,Leicestershire Partnership NHS Trust,23/07/21,Contract : Refuse Collection,"OSL House (P54, LPT)",BIFFA WASTE SERVICES LTD,MAY2021,386.38
Department of Health,Leicestershire Partnership NHS Trust,23/07/21,Contract : Refuse Collection,"Orchard Resource Centre (P15, LPT)",BIFFA WASTE SERVICES LTD,MAY2021,95.88
Department of Health,Leicestershire Partnership NHS Trust,23/07/21,Contract : Refuse Collection,Pharmacy Portacabin,BIFFA WASTE SERVICES LTD,MAY2021,361.72
Department of Health,Leicestershire Partnership NHS Trust,23/07/21,Contract : Refuse Collection,"Prince Philip House (P96, LPT)",BIFFA WASTE SERVICES LTD,MAY2021,106.30
Department of Health,Leicestershire Partnership NHS Trust,23/07/21,Contract : Refuse Collection,Rothesay -  London Road 352A (LPT),BIFFA WASTE SERVICES LTD,MAY2021,107.37
Department of Health,Leicestershire Partnership NHS Trust,23/07/21,Contract : Refuse Collection,"Rutland Memorial Hospital (P134, LPT)",BIFFA WASTE SERVICES LTD,MAY2021,631.55
Department of Health,Leicestershire Partnership NHS Trust,23/07/21,Contract : Refuse Collection,"Shepshed Health Centre (P123, LPT)",BIFFA WASTE SERVICES LTD,MAY2021,186.69
Department of Health,Leicestershire Partnership NHS Trust,23/07/21,Contract : Refuse Collection,"Springfield Road Health Centre (P92, LPT)",BIFFA WASTE SERVICES LTD,MAY2021,319.01
Department of Health,Leicestershire Partnership NHS Trust,23/07/21,Contract : Refuse Collection,"Stewart House (P61, LPT)",BIFFA WASTE SERVICES LTD,MAY2021,1273.26
Department of Health,Leicestershire Partnership NHS Trust,23/07/21,Contract : Refuse Collection,"Swithland House - London Road 352 (P44, LPT)",BIFFA WASTE SERVICES LTD,MAY2021,107.37
Department of Health,Leicestershire Partnership NHS Trust,23/07/21,Contract : Refuse Collection,"The Agnes Unit (AKA Assessment and Treatment Centre) (P85, LPT)",BIFFA WASTE SERVICES LTD,MAY2021,652.41
Department of Health,Leicestershire Partnership NHS Trust,23/07/21,Contract : Refuse Collection,The Beacon,BIFFA WASTE SERVICES LTD,MAY2021,418.76
Department of Health,Leicestershire Partnership NHS Trust,23/07/21,Contract : Refuse Collection,"The Cedars (P19, LPT)",BIFFA WASTE SERVICES LTD,MAY2021,107.37
Department of Health,Leicestershire Partnership NHS Trust,23/07/21,Contract : Refuse Collection,"The Willows - Cordelia Close (P22, LPT)",BIFFA WASTE SERVICES LTD,MAY2021,432.42
Department of Health,Leicestershire Partnership NHS Trust,23/07/21,Contract : Refuse Collection,"Valentine Centre (P3, LPT)",BIFFA WASTE SERVICES LTD,MAY2021,201.89
Department of Health,Leicestershire Partnership NHS Trust,23/07/21,Contract : Refuse Collection,"Westcotes Group -Westcotes House (P78, LPT)",BIFFA WASTE SERVICES LTD,MAY2021,208.58
Department of Health,Leicestershire Partnership NHS Trust,23/07/21,Contract : Refuse Collection,"Winstanley Drive Health Centre (P8, LPT)",BIFFA WASTE SERVICES LTD,MAY2021,125.40
Department of Health,Leicestershire Partnership NHS Trust,27/07/21,Healthcare Services / Recharges from Non-NHS Bodies,AMH - Central Access Point,TURNING POINT,SI-TPS-00034687,21486.83
Department of Health,Leicestershire Partnership NHS Trust,27/07/21,Healthcare Services / Recharges from Non-NHS Bodies,AMH - Central Access Point,TURNING POINT,SI-TPS-00034622,21486.83
Department of Health,Leicestershire Partnership NHS Trust,27/07/21,Healthcare Services / Recharges from Non-NHS Bodies,AMH - Central Access Point,TURNING POINT,SI-TPS-00034623,21486.83
Department of Health,Leicestershire Partnership NHS Trust,28/07/21,CHP Estates Management,Merlyn Vaz Centre (CHP),COMM HLTH PARTNERSHIPS LTD,0060206292,30935.19
Department of Health,Leicestershire Partnership NHS Trust,28/07/21,CHP Estates Management,Merlyn Vaz Centre (CHP),COMM HLTH PARTNERSHIPS LTD,0060206295,27744.56
Department of Health,Leicestershire Partnership NHS Trust,29/07/21,Healthcare Services / Recharges from Non-NHS Bodies,Marie Curie Service,MARIE CURIE CANCER CARE,67040,192225.00
